[Event "Early-Titled-Tuesday-Blitz-April-23-2024"]
[Site "Chess.com"]
[Date "2024.04.23"]
[Round "7"]
[White "MIss_MIaMI"]
[Black "Zavgorodniy_Sergiy"]
[Result "0-1"]
[WhiteElo "2338"]
[BlackElo "2585"]
[TimeControl "180+1"]
[EndTime "9:20:20 PDT"]
[Termination "Zavgorodniy_Sergiy won by resignation"]

1. e4 {[%clk 0:03:00.9]} 1... e5 {[%clk 0:02:56.5]} 2. Nf3 {[%clk 0:03:01.3]}
2... d6 {[%clk 0:02:55.8]} 3. d4 {[%clk 0:03:01.7]} 3... exd4 {[%clk 0:02:56.4]}
4. c3 {[%clk 0:03:01.9]} 4... Nf6 {[%clk 0:02:55.6]} 5. Qxd4 {[%clk 0:02:49.6]}
5... Be7 {[%clk 0:02:54.2]} 6. Bd3 {[%clk 0:02:44.1]} 6... O-O {[%clk
0:02:54.5]} 7. O-O {[%clk 0:02:43.8]} 7... Re8 {[%clk 0:02:43.9]} 8. Re1 {[%clk
0:02:35.9]} 8... Nc6 {[%clk 0:02:40.1]} 9. Qe3 {[%clk 0:02:36.2]} 9... Ng4
{[%clk 0:02:37]} 10. Qf4 {[%clk 0:02:31]} 10... Nce5 {[%clk 0:02:35.3]} 11. Bc2
{[%clk 0:02:27.4]} 11... Ng6 {[%clk 0:02:20.7]} 12. Qd2 {[%clk 0:02:00.8]} 12...
d5 {[%clk 0:02:03.4]} 13. Qxd5 {[%clk 0:01:45.4]} 13... Be6 {[%clk 0:01:07.2]}
14. Qxd8 {[%clk 0:01:40.9]} 14... Raxd8 {[%clk 0:01:08.1]} 15. Nd4 {[%clk
0:01:40.9]} 15... Bc8 {[%clk 0:01:01.5]} 16. h3 {[%clk 0:01:28.7]} 16... N4e5
{[%clk 0:00:54.1]} 17. f4 {[%clk 0:01:16.4]} 17... Bh4 {[%clk 0:00:49.5]} 18.
Rf1 {[%clk 0:01:04.7]} 18... c5 {[%clk 0:00:49.3]} 19. Nf5 {[%clk 0:00:56.4]}
19... Nd3 {[%clk 0:00:43.1]} 20. Bxd3 {[%clk 0:00:40.9]} 20... Rxd3 {[%clk
0:00:44]} 21. Nxh4 {[%clk 0:00:41.4]} 21... Nxh4 {[%clk 0:00:43.4]} 22. e5
{[%clk 0:00:40.5]} 22... Red8 {[%clk 0:00:40.3]} 23. Na3 {[%clk 0:00:37.6]}
23... Rg3 {[%clk 0:00:38.4]} 24. Rf2 {[%clk 0:00:37.6]} 24... Rd1+ {[%clk
0:00:35.8]} 25. Kh2 {[%clk 0:00:38.2]} 25... Rgd3 {[%clk 0:00:33.7]} 26. Nb5
{[%clk 0:00:30.4]} 26... Bd7 {[%clk 0:00:24]} 27. Nd6 {[%clk 0:00:28.3]} 27...
Bc6 {[%clk 0:00:22.9]} 28. b3 {[%clk 0:00:25.2]} 28... Rxc3 {[%clk 0:00:17.1]}
29. Bb2 {[%clk 0:00:24]} 29... Rxa1 {[%clk 0:00:17.6]} 30. Bxa1 {[%clk
0:00:24.9]} 30... Rc1 {[%clk 0:00:18]} 31. Bb2 {[%clk 0:00:22]} 31... Rb1 {[%clk
0:00:18.2]} 32. Kg3 {[%clk 0:00:21.7]} 32... Nxg2 {[%clk 0:00:17.6]} 33. Ba3
{[%clk 0:00:20.1]} 33... b6 {[%clk 0:00:15.8]} 34. Rxg2 {[%clk 0:00:20]} 34...
Bxg2 {[%clk 0:00:16.7]} 35. Kxg2 {[%clk 0:00:20.9]} 35... Ra1 {[%clk 0:00:17.2]}
36. Kg3 {[%clk 0:00:18.8]} 36... Rxa2 {[%clk 0:00:18.1]} 37. Bc1 {[%clk
0:00:19.5]} 37... Rc2 {[%clk 0:00:17.2]} 38. Be3 {[%clk 0:00:19]} 38... Rc3
{[%clk 0:00:17.7]} 39. Kf3 {[%clk 0:00:19.3]} 39... Rxb3 {[%clk 0:00:18]} 40.
Nc8 {[%clk 0:00:20]} 40... a5 {[%clk 0:00:18]} 41. Ke4 {[%clk 0:00:20.6]} 41...
a4 {[%clk 0:00:17.7]} 42. f5 {[%clk 0:00:19.8]} 42... a3 {[%clk 0:00:17.8]} 43.
e6 {[%clk 0:00:16.9]} 43... fxe6 {[%clk 0:00:18.1]} 44. fxe6 {[%clk 0:00:17.8]}
44... a2 {[%clk 0:00:18.5]} 45. Nd6 {[%clk 0:00:16.2]} 45... Rxe3+ {[%clk
0:00:17.3]} 46. Kxe3 {[%clk 0:00:16.4]} 46... a1=Q {[%clk 0:00:18.1]} 47. Ke4
{[%clk 0:00:15.7]} 47... Qd4+ {[%clk 0:00:17.7]} 48. Kf5 {[%clk 0:00:15.8]}
48... Qxd6 {[%clk 0:00:18.3]} 0-1

[Event "Early-Titled-Tuesday-Blitz-April-23-2024"]
[Site "Chess.com"]
[Date "2024.04.23"]
[Round "7"]
[White "Oleksandr_Bortnyk"]
[Black "Anton_Demchenko"]
[Result "1-0"]
[WhiteElo "3118"]
[BlackElo "2980"]
[TimeControl "180+1"]
[EndTime "9:20:21 PDT"]
[Termination "Oleksandr_Bortnyk won on time"]

1. e4 {[%clk 0:03:00.9]} 1... e5 {[%clk 0:02:59.6]} 2. Nf3 {[%clk 0:03:00.9]}
2... Nc6 {[%clk 0:03:00.2]} 3. Bb5 {[%clk 0:03:00.7]} 3... a6 {[%clk 0:03:00.1]}
4. Ba4 {[%clk 0:03:00.7]} 4... Nge7 {[%clk 0:03:00.5]} 5. d3 {[%clk 0:02:56.9]}
5... d6 {[%clk 0:02:55]} 6. h4 {[%clk 0:02:48.2]} 6... h6 {[%clk 0:02:52.6]} 7.
h5 {[%clk 0:02:47.6]} 7... Bg4 {[%clk 0:02:50]} 8. Be3 {[%clk 0:02:47.1]} 8...
Qd7 {[%clk 0:02:40.4]} 9. c4 {[%clk 0:02:33.8]} 9... Ng8 {[%clk 0:02:34.5]} 10.
Nc3 {[%clk 0:02:31]} 10... Nf6 {[%clk 0:02:33]} 11. Qb3 {[%clk 0:02:25.6]} 11...
Qc8 {[%clk 0:02:14.5]} 12. Nd5 {[%clk 0:02:16.3]} 12... Be7 {[%clk 0:02:04.1]}
13. Nh4 {[%clk 0:02:06.6]} 13... Bd7 {[%clk 0:01:58]} 14. Nf5 {[%clk 0:01:55.8]}
14... Bxf5 {[%clk 0:01:48.6]} 15. exf5 {[%clk 0:01:56.7]} 15... Bd8 {[%clk
0:01:48.9]} 16. g4 {[%clk 0:01:47.9]} 16... O-O {[%clk 0:01:43.4]} 17. Qd1
{[%clk 0:00:55.4]} 17... Nd4 {[%clk 0:01:27.7]} 18. Nc3 {[%clk 0:00:42.1]} 18...
c6 {[%clk 0:01:21.9]} 19. Ne4 {[%clk 0:00:31.6]} 19... b5 {[%clk 0:01:03.1]} 20.
Bc2 {[%clk 0:00:14.7]} 20... Nxe4 {[%clk 0:01:00.3]} 21. dxe4 {[%clk 0:00:13.9]}
21... bxc4 {[%clk 0:01:00.6]} 22. Bxd4 {[%clk 0:00:08]} 22... exd4 {[%clk
0:01:00.6]} 23. Qxd4 {[%clk 0:00:08.9]} 23... Qb8 {[%clk 0:00:49.3]} 24. O-O
{[%clk 0:00:03.7]} 24... Bf6 {[%clk 0:00:37.9]} 25. Qxc4 {[%clk 0:00:04]} 25...
Qxb2 {[%clk 0:00:38.2]} 26. Rad1 {[%clk 0:00:03.9]} 26... Qe5 {[%clk 0:00:36.5]}
27. f4 {[%clk 0:00:03.4]} 27... Qb5 {[%clk 0:00:22.1]} 28. Qxb5 {[%clk
0:00:01.9]} 28... axb5 {[%clk 0:00:22.2]} 29. Rxd6 {[%clk 0:00:02.7]} 29... Rxa2
{[%clk 0:00:19.4]} 30. Rxc6 {[%clk 0:00:03.3]} 30... Bd4+ {[%clk 0:00:19.7]} 31.
Kg2 {[%clk 0:00:03.3]} 31... b4 {[%clk 0:00:18.2]} 32. Rb1 {[%clk 0:00:02.4]}
32... Rb8 {[%clk 0:00:17.5]} 33. Kf3 {[%clk 0:00:02.4]} 33... Ra3+ {[%clk
0:00:08.2]} 34. Rb3 {[%clk 0:00:02.5]} 34... Rba8 {[%clk 0:00:08.9]} 35. e5
{[%clk 0:00:02.7]} 35... Rxb3+ {[%clk 0:00:08.6]} 36. Bxb3 {[%clk 0:00:02.4]}
36... Ra3 {[%clk 0:00:09.5]} 37. Ke4 {[%clk 0:00:03.1]} 37... Rxb3 {[%clk
0:00:09.1]} 38. Kxd4 {[%clk 0:00:03.4]} 38... Rb1 {[%clk 0:00:02.8]} 39. Rc8+
{[%clk 0:00:03.2]} 39... Kh7 {[%clk 0:00:03.4]} 40. e6 {[%clk 0:00:04.1]} 40...
fxe6 {[%clk 0:00:02.8]} 41. fxe6 {[%clk 0:00:05]} 41... Re1 {[%clk 0:00:02.7]}
42. f5 {[%clk 0:00:04.9]} 42... b3 {[%clk 0:00:03.1]} 43. Rb8 {[%clk 0:00:05.6]}
43... Rb1 {[%clk 0:00:01.8]} 44. e7 {[%clk 0:00:05.4]} 44... Rd1+ {[%clk
0:00:02.2]} 45. Kc3 {[%clk 0:00:05.5]} 1-0

[Event "Early-Titled-Tuesday-Blitz-April-23-2024"]
[Site "Chess.com"]
[Date "2024.04.23"]
[Round "7"]
[White "Zampronha1971"]
[Black "Evan_Attaker"]
[Result "0-1"]
[WhiteElo "2438"]
[BlackElo "2586"]
[TimeControl "180+1"]
[EndTime "9:20:22 PDT"]
[Termination "Evan_Attaker won by resignation"]

1. e4 {[%clk 0:03:00.9]} 1... d6 {[%clk 0:02:58.6]} 2. d4 {[%clk 0:02:59.8]}
2... Nf6 {[%clk 0:02:44.8]} 3. Nc3 {[%clk 0:02:59.2]} 3... g6 {[%clk 0:02:44.7]}
4. Bg5 {[%clk 0:02:58.1]} 4... Bg7 {[%clk 0:02:44.4]} 5. Qd2 {[%clk 0:02:58.3]}
5... c6 {[%clk 0:02:44]} 6. O-O-O {[%clk 0:02:55.2]} 6... Qa5 {[%clk 0:02:43.1]}
7. f4 {[%clk 0:02:54.6]} 7... b5 {[%clk 0:02:31.4]} 8. e5 {[%clk 0:02:50.5]}
8... b4 {[%clk 0:02:29.6]} 9. exf6 {[%clk 0:02:50.5]} 9... bxc3 {[%clk
0:02:29.6]} 10. Qxc3 {[%clk 0:02:50.9]} 10... Qxc3 {[%clk 0:02:28.9]} 11. bxc3
{[%clk 0:02:51.4]} 11... exf6 {[%clk 0:02:28.5]} 12. Bh4 {[%clk 0:02:51.6]}
12... d5 {[%clk 0:02:17.5]} 13. Re1+ {[%clk 0:02:47.3]} 13... Kd7 {[%clk
0:02:13.6]} 14. Nf3 {[%clk 0:02:43.4]} 14... Ba6 {[%clk 0:02:13.1]} 15. Bd3
{[%clk 0:02:42.6]} 15... Bxd3 {[%clk 0:01:51.7]} 16. cxd3 {[%clk 0:02:40.9]}
16... Na6 {[%clk 0:01:51.7]} 17. f5 {[%clk 0:02:35.2]} 17... Rhe8 {[%clk
0:01:29.4]} 18. Bg3 {[%clk 0:02:32]} 18... Bf8 {[%clk 0:01:19.2]} 19. Kc2 {[%clk
0:02:31.1]} 19... Bd6 {[%clk 0:01:17.9]} 20. Bxd6 {[%clk 0:02:29.7]} 20... Kxd6
{[%clk 0:01:18.8]} 21. g4 {[%clk 0:02:28.2]} 21... Nc7 {[%clk 0:01:12.1]} 22.
Kd2 {[%clk 0:02:11.2]} 22... Rxe1 {[%clk 0:00:48]} 23. Rxe1 {[%clk 0:02:09.9]}
23... gxf5 {[%clk 0:00:48.9]} 24. gxf5 {[%clk 0:02:08.9]} 24... Rg8 {[%clk
0:00:49.4]} 25. Rg1 {[%clk 0:01:59.3]} 25... Rxg1 {[%clk 0:00:39]} 26. Nxg1
{[%clk 0:02:00.2]} 26... Nb5 {[%clk 0:00:34.8]} 27. Ne2 {[%clk 0:01:53.6]} 27...
Kc7 {[%clk 0:00:30.7]} 28. Ke3 {[%clk 0:01:52.6]} 28... Nd6 {[%clk 0:00:28.4]}
29. Kf4 {[%clk 0:01:52.2]} 29... Kb6 {[%clk 0:00:28.8]} 30. Ng3 {[%clk
0:01:46.1]} 30... Kb5 {[%clk 0:00:24.5]} 31. Nh5 {[%clk 0:01:46.3]} 31... Ne8
{[%clk 0:00:18]} 32. Ke3 {[%clk 0:01:02.9]} 32... Ka4 {[%clk 0:00:17.8]} 33. Kd2
{[%clk 0:01:03.5]} 33... Ka3 {[%clk 0:00:18.3]} 34. Kc2 {[%clk 0:01:03.5]} 34...
Kxa2 {[%clk 0:00:18.6]} 35. c4 {[%clk 0:01:02.8]} 35... Ka3 {[%clk 0:00:17.8]}
36. Nf4 {[%clk 0:01:01.2]} 36... dxc4 {[%clk 0:00:17]} 37. dxc4 {[%clk
0:01:00.9]} 37... Nd6 {[%clk 0:00:17.7]} 38. c5 {[%clk 0:00:46.7]} 38... Nxf5
{[%clk 0:00:18.1]} 39. Kc3 {[%clk 0:00:47.4]} 39... Ne7 {[%clk 0:00:17.5]} 40.
Kc4 {[%clk 0:00:46.4]} 40... a5 {[%clk 0:00:16.4]} 41. d5 {[%clk 0:00:46.9]}
41... cxd5+ {[%clk 0:00:17.1]} 42. Nxd5 {[%clk 0:00:47.7]} 42... Nc8 {[%clk
0:00:14.4]} 43. Nxf6 {[%clk 0:00:47.5]} 43... a4 {[%clk 0:00:14.2]} 44. Nd7
{[%clk 0:00:35.9]} 44... Kb2 {[%clk 0:00:12.5]} 45. Nb6 {[%clk 0:00:36.5]} 45...
a3 {[%clk 0:00:08.9]} 46. Nxc8 {[%clk 0:00:31]} 46... a2 {[%clk 0:00:08.9]} 47.
c6 {[%clk 0:00:31.3]} 47... a1=Q {[%clk 0:00:09.8]} 48. Kc5 {[%clk 0:00:30]}
48... Qc1+ {[%clk 0:00:08.9]} 49. Kd6 {[%clk 0:00:30]} 49... Qh6+ {[%clk
0:00:09.1]} 50. Kd7 {[%clk 0:00:29.9]} 50... Qh3+ {[%clk 0:00:09.6]} 51. Kd8
{[%clk 0:00:29.4]} 51... Qxh2 {[%clk 0:00:10.5]} 52. c7 {[%clk 0:00:29.1]} 52...
Kc3 {[%clk 0:00:10.4]} 53. Nd6 {[%clk 0:00:27.8]} 53... Qxd6+ {[%clk 0:00:10.6]}
0-1

[Event "Early-Titled-Tuesday-Blitz-April-23-2024"]
[Site "Chess.com"]
[Date "2024.04.23"]
[Round "7"]
[White "Susal_De_Silva"]
[Black "a_kandil"]
[Result "1-0"]
[WhiteElo "2694"]
[BlackElo "2523"]
[TimeControl "180+1"]
[EndTime "9:20:23 PDT"]
[Termination "Susal_De_Silva won on time"]

1. e4 {[%clk 0:03:00.9]} 1... c5 {[%clk 0:02:59.1]} 2. Nf3 {[%clk 0:03:01.1]}
2... d6 {[%clk 0:02:59.3]} 3. Bb5+ {[%clk 0:03:01.3]} 3... Nd7 {[%clk
0:02:58.4]} 4. Ba4 {[%clk 0:03:01.7]} 4... g6 {[%clk 0:02:55]} 5. O-O {[%clk
0:03:00.8]} 5... Bg7 {[%clk 0:02:55.6]} 6. c3 {[%clk 0:02:57.5]} 6... e5 {[%clk
0:02:55.7]} 7. d4 {[%clk 0:02:55.1]} 7... Qc7 {[%clk 0:02:50.7]} 8. dxe5 {[%clk
0:02:50.4]} 8... dxe5 {[%clk 0:02:50.4]} 9. Bb3 {[%clk 0:02:50.3]} 9... Ngf6
{[%clk 0:02:49.7]} 10. Nbd2 {[%clk 0:02:38.5]} 10... O-O {[%clk 0:02:48.9]} 11.
Qe2 {[%clk 0:02:38.4]} 11... h6 {[%clk 0:02:28.2]} 12. a4 {[%clk 0:02:33.7]}
12... b6 {[%clk 0:02:26.2]} 13. Rd1 {[%clk 0:02:32]} 13... Bb7 {[%clk
0:02:25.7]} 14. Bc2 {[%clk 0:02:21.5]} 14... Rfd8 {[%clk 0:02:24.3]} 15. Nc4
{[%clk 0:02:21.6]} 15... Nf8 {[%clk 0:02:02.8]} 16. Rxd8 {[%clk 0:02:14.6]}
16... Rxd8 {[%clk 0:02:03.7]} 17. Ncxe5 {[%clk 0:02:14.3]} 17... Nxe4 {[%clk
0:01:44.5]} 18. Bf4 {[%clk 0:02:00.8]} 18... Ne6 {[%clk 0:01:44.2]} 19. Bxh6
{[%clk 0:01:30.4]} 19... Bxh6 {[%clk 0:01:13.7]} 20. Bxe4 {[%clk 0:01:28.7]}
20... Nf4 {[%clk 0:01:12.3]} 21. Qc2 {[%clk 0:01:28.7]} 21... Bxe4 {[%clk
0:01:07.3]} 22. Qxe4 {[%clk 0:01:29.6]} 22... Nd5 {[%clk 0:00:49.1]} 23. h4
{[%clk 0:01:05.2]} 23... Bg7 {[%clk 0:00:45.6]} 24. Rd1 {[%clk 0:01:03]} 24...
Nf6 {[%clk 0:00:41.7]} 25. Rxd8+ {[%clk 0:00:58.4]} 25... Qxd8 {[%clk
0:00:42.6]} 26. Qb7 {[%clk 0:00:57.2]} 26... Qe8 {[%clk 0:00:34.6]} 27. Qxa7
{[%clk 0:00:42.7]} 27... Nd5 {[%clk 0:00:34.7]} 28. Qd7 {[%clk 0:00:36.2]} 28...
Qxd7 {[%clk 0:00:19.5]} 29. Nxd7 {[%clk 0:00:37.1]} 29... f5 {[%clk 0:00:18.4]}
30. Nd2 {[%clk 0:00:36.1]} 30... Kf7 {[%clk 0:00:13.7]} 31. Nc4 {[%clk
0:00:35.3]} 31... Ke6 {[%clk 0:00:13.9]} 32. Ndxb6 {[%clk 0:00:34.2]} 32... Nxb6
{[%clk 0:00:10.3]} 33. Nxb6 {[%clk 0:00:35.1]} 33... Kd6 {[%clk 0:00:10.4]} 34.
Nc4+ {[%clk 0:00:25.4]} 34... Kd5 {[%clk 0:00:09.6]} 35. Nd2 {[%clk 0:00:21.2]}
35... Bh6 {[%clk 0:00:09.1]} 36. Nf3 {[%clk 0:00:21.3]} 36... Bc1 {[%clk
0:00:09.2]} 37. b3 {[%clk 0:00:20.4]} 37... Bb2 {[%clk 0:00:04.5]} 38. c4+
{[%clk 0:00:16.3]} 38... Ke4 {[%clk 0:00:03.9]} 39. a5 {[%clk 0:00:16.6]} 1-0

[Event "Early-Titled-Tuesday-Blitz-April-23-2024"]
[Site "Chess.com"]
[Date "2024.04.23"]
[Round "7"]
[White "LamaChampetre"]
[Black "patzer-reloaded"]
[Result "0-1"]
[WhiteElo "2244"]
[BlackElo "2436"]
[TimeControl "180+1"]
[EndTime "9:20:27 PDT"]
[Termination "patzer-reloaded won on time"]

1. d4 {[%clk 0:03:00.9]} 1... Nf6 {[%clk 0:02:55.8]} 2. c4 {[%clk 0:03:01]} 2...
e6 {[%clk 0:02:55.8]} 3. Nf3 {[%clk 0:03:00.9]} 3... d5 {[%clk 0:02:55.4]} 4.
Nc3 {[%clk 0:02:52.6]} 4... Bb4 {[%clk 0:02:54.7]} 5. Qa4+ {[%clk 0:02:40.8]}
5... Nc6 {[%clk 0:02:54.1]} 6. Bg5 {[%clk 0:02:34.5]} 6... h6 {[%clk 0:02:52.3]}
7. Bh4 {[%clk 0:02:33.6]} 7... g5 {[%clk 0:02:46]} 8. Bg3 {[%clk 0:02:33.3]}
8... Ne4 {[%clk 0:02:45.7]} 9. Rc1 {[%clk 0:02:28.4]} 9... O-O {[%clk
0:02:41.6]} 10. e3 {[%clk 0:02:20.7]} 10... h5 {[%clk 0:02:41.2]} 11. h3 {[%clk
0:01:19.8]} 11... Nxg3 {[%clk 0:02:25.5]} 12. fxg3 {[%clk 0:01:17.8]} 12... Bd6
{[%clk 0:02:24.8]} 13. Kf2 {[%clk 0:01:05.4]} 13... h4 {[%clk 0:02:24]} 14. gxh4
{[%clk 0:00:59.3]} 14... gxh4 {[%clk 0:02:23.7]} 15. Bd3 {[%clk 0:00:46.2]}
15... Bg3+ {[%clk 0:02:21.1]} 16. Ke2 {[%clk 0:00:46.5]} 16... Bd7 {[%clk
0:01:50.9]} 17. Qd1 {[%clk 0:00:39.1]} 17... Nb4 {[%clk 0:01:27.7]} 18. a3
{[%clk 0:00:37.1]} 18... Nxd3 {[%clk 0:01:26.9]} 19. Qxd3 {[%clk 0:00:36.3]}
19... c6 {[%clk 0:01:20.5]} 20. Kd2 {[%clk 0:00:31.5]} 20... f5 {[%clk 0:01:16]}
21. Rhf1 {[%clk 0:00:30.8]} 21... Qf6 {[%clk 0:01:15]} 22. Ne2 {[%clk
0:00:21.2]} 22... Bd6 {[%clk 0:00:59.7]} 23. Kc2 {[%clk 0:00:19]} 23... Rf7
{[%clk 0:00:57]} 24. Kb1 {[%clk 0:00:19.1]} 24... Rg7 {[%clk 0:00:54.1]} 25. Rf2
{[%clk 0:00:17.5]} 25... Kh8 {[%clk 0:00:52.1]} 26. Nf4 {[%clk 0:00:17.2]} 26...
Qh6 {[%clk 0:00:47.7]} 27. Re1 {[%clk 0:00:14.2]} 27... Rag8 {[%clk 0:00:46.4]}
28. Qd2 {[%clk 0:00:12]} 28... Be8 {[%clk 0:00:43.8]} 29. Ne5 {[%clk 0:00:12.2]}
29... Bh5 {[%clk 0:00:35.1]} 30. Ned3 {[%clk 0:00:11.8]} 30... Bf7 {[%clk
0:00:33.1]} 31. c5 {[%clk 0:00:11.8]} 31... Bc7 {[%clk 0:00:32.5]} 32. Qe2
{[%clk 0:00:11.6]} 32... Rg3 {[%clk 0:00:30.7]} 33. Rf3 {[%clk 0:00:10.9]} 33...
R3g5 {[%clk 0:00:26.9]} 34. Rf2 {[%clk 0:00:10.8]} 34... Bh5 {[%clk 0:00:25]}
35. Qd2 {[%clk 0:00:10.7]} 35... Bf7 {[%clk 0:00:24.4]} 36. Qe2 {[%clk 0:00:11]}
36... Kh7 {[%clk 0:00:23]} 37. Qd2 {[%clk 0:00:11]} 37... Rg3 {[%clk 0:00:22.3]}
38. Qb4 {[%clk 0:00:09.3]} 38... R8g7 {[%clk 0:00:19.1]} 39. Qxb7 {[%clk
0:00:08.7]} 39... Bxf4 {[%clk 0:00:17.4]} 40. Nxf4 {[%clk 0:00:08.4]} 40... e5
{[%clk 0:00:14.4]} 41. dxe5 {[%clk 0:00:06.5]} 41... d4 {[%clk 0:00:14.5]} 42.
exd4 {[%clk 0:00:06]} 42... Ba2+ {[%clk 0:00:13.2]} 43. Kxa2 {[%clk 0:00:05.2]}
43... Rxb7 {[%clk 0:00:14.1]} 44. e6 {[%clk 0:00:04.9]} 44... Re7 {[%clk
0:00:12.7]} 45. Rfe2 {[%clk 0:00:03.9]} 45... Qf6 {[%clk 0:00:11]} 46. Re5
{[%clk 0:00:03]} 46... Qg5 {[%clk 0:00:08.1]} 47. Nd3 {[%clk 0:00:01.6]} 47...
Rxd3 {[%clk 0:00:07.3]} 0-1

[Event "Early-Titled-Tuesday-Blitz-April-23-2024"]
[Site "Chess.com"]
[Date "2024.04.23"]
[Round "7"]
[White "Alexei_Gubajdullin"]
[Black "duone"]
[Result "0-1"]
[WhiteElo "2598"]
[BlackElo "2451"]
[TimeControl "180+1"]
[EndTime "9:20:30 PDT"]
[Termination "duone won by checkmate"]

1. Nf3 {[%clk 0:02:57]} 1... Nf6 {[%clk 0:02:59.2]} 2. g3 {[%clk 0:02:51.7]}
2... g6 {[%clk 0:02:58.3]} 3. Bg2 {[%clk 0:02:47]} 3... Bg7 {[%clk 0:02:59.2]}
4. O-O {[%clk 0:02:46.4]} 4... O-O {[%clk 0:02:59.2]} 5. d3 {[%clk 0:02:42]}
5... d5 {[%clk 0:02:58.4]} 6. Nbd2 {[%clk 0:02:42.1]} 6... b6 {[%clk 0:02:57.2]}
7. e4 {[%clk 0:02:41.3]} 7... dxe4 {[%clk 0:02:57.4]} 8. Re1 {[%clk 0:02:26.2]}
8... exf3 {[%clk 0:02:55.3]} 9. Qxf3 {[%clk 0:02:24.7]} 9... c6 {[%clk
0:02:55.5]} 10. Nc4 {[%clk 0:02:22.1]} 10... Bb7 {[%clk 0:02:54.8]} 11. Bf4
{[%clk 0:02:21.7]} 11... Nbd7 {[%clk 0:02:54.3]} 12. a4 {[%clk 0:02:21.7]} 12...
Nd5 {[%clk 0:02:53.6]} 13. Bg5 {[%clk 0:02:19.8]} 13... f6 {[%clk 0:02:49.7]}
14. Bd2 {[%clk 0:02:19.3]} 14... e5 {[%clk 0:02:49.5]} 15. a5 {[%clk 0:02:18.9]}
15... Qc7 {[%clk 0:02:47.1]} 16. a6 {[%clk 0:02:18.7]} 16... Bc8 {[%clk
0:02:46.9]} 17. b4 {[%clk 0:02:12.1]} 17... Kh8 {[%clk 0:02:42.4]} 18. b5 {[%clk
0:02:11.7]} 18... Nc5 {[%clk 0:02:35.1]} 19. bxc6 {[%clk 0:02:10.6]} 19... Be6
{[%clk 0:02:35.2]} 20. d4 {[%clk 0:02:05.1]} 20... exd4 {[%clk 0:02:20.6]} 21.
Rxe6 {[%clk 0:02:02.3]} 21... Nxe6 {[%clk 0:02:21]} 22. Qxd5 {[%clk 0:02:02.7]}
22... Rfe8 {[%clk 0:02:17.8]} 23. Qd7 {[%clk 0:01:59.4]} 23... Rad8 {[%clk
0:02:13.1]} 24. Qxc7 {[%clk 0:01:59.2]} 24... Nxc7 {[%clk 0:02:13.8]} 25. Bf4
{[%clk 0:01:59.5]} 25... Ne6 {[%clk 0:02:13]} 26. c7 {[%clk 0:01:59]} 26... Rc8
{[%clk 0:02:10.4]} 27. Bb7 {[%clk 0:01:57.3]} 27... Nxf4 {[%clk 0:02:10.5]} 28.
Bxc8 {[%clk 0:01:56.9]} 28... Ne2+ {[%clk 0:01:44.8]} 29. Kf1 {[%clk 0:01:56.7]}
29... Nxg3+ {[%clk 0:01:45.1]} 30. hxg3 {[%clk 0:01:56.1]} 30... Rxc8 {[%clk
0:01:45.3]} 31. Re1 {[%clk 0:01:52.8]} 31... Bf8 {[%clk 0:01:41]} 32. Nxb6
{[%clk 0:01:48.1]} 32... Rxc7 {[%clk 0:01:10]} 33. Nd5 {[%clk 0:01:46.6]} 33...
Rc6 {[%clk 0:01:09.5]} 34. Ra1 {[%clk 0:01:20.6]} 34... Kg7 {[%clk 0:01:05.4]}
35. Ra4 {[%clk 0:01:20.1]} 35... Rxc2 {[%clk 0:00:59.3]} 36. Nf4 {[%clk
0:01:20]} 36... Rc6 {[%clk 0:00:57.8]} 37. Ke2 {[%clk 0:01:17.9]} 37... Kf7
{[%clk 0:00:53.9]} 38. Kd3 {[%clk 0:01:17.7]} 38... Bc5 {[%clk 0:00:54.1]} 39.
Rc4 {[%clk 0:01:15.7]} 39... Ke7 {[%clk 0:00:54.4]} 40. Nd5+ {[%clk 0:01:13.6]}
40... Ke6 {[%clk 0:00:50.2]} 41. Nf4+ {[%clk 0:01:05.6]} 41... Kd6 {[%clk
0:00:50.5]} 42. Ke4 {[%clk 0:01:00.9]} 42... Rxa6 {[%clk 0:00:49.3]} 43. Nd3
{[%clk 0:01:00.8]} 43... Rc6 {[%clk 0:00:48.9]} 44. g4 {[%clk 0:01:00]} 44...
Bb6 {[%clk 0:00:44.9]} 45. Ra4 {[%clk 0:00:59.5]} 45... a5 {[%clk 0:00:43.6]}
46. f4 {[%clk 0:00:59.3]} 46... Rc2 {[%clk 0:00:42]} 47. Kf3 {[%clk 0:00:47]}
47... Kd5 {[%clk 0:00:40.1]} 48. f5 {[%clk 0:00:42.8]} 48... g5 {[%clk
0:00:36.4]} 49. Ra1 {[%clk 0:00:40.2]} 49... Rc3 {[%clk 0:00:24.3]} 50. Ke2
{[%clk 0:00:39.8]} 50... Ke4 {[%clk 0:00:24.9]} 51. Nf2+ {[%clk 0:00:37.9]}
51... Kd5 {[%clk 0:00:25.2]} 52. Rb1 {[%clk 0:00:36.1]} 52... Bc5 {[%clk
0:00:23.7]} 53. Rb7 {[%clk 0:00:34.8]} 53... a4 {[%clk 0:00:22.7]} 54. Rxh7
{[%clk 0:00:32.9]} 54... a3 {[%clk 0:00:23.1]} 55. Ra7 {[%clk 0:00:32.6]} 55...
Rc2+ {[%clk 0:00:22.1]} 56. Ke1 {[%clk 0:00:32.4]} 56... Bxa7 {[%clk 0:00:22.4]}
57. Nd3 {[%clk 0:00:31.8]} 57... Kc4 {[%clk 0:00:20.4]} 58. Nf2 {[%clk
0:00:29.3]} 58... a2 {[%clk 0:00:20.5]} 59. Kf1 {[%clk 0:00:28.2]} 59... a1=Q+
{[%clk 0:00:20.3]} 60. Kg2 {[%clk 0:00:29.1]} 60... Qb2 {[%clk 0:00:20.4]} 61.
Kf3 {[%clk 0:00:28.7]} 61... Rxf2+ {[%clk 0:00:20.8]} 62. Ke4 {[%clk 0:00:29.6]}
62... Qe2# {[%clk 0:00:20.4]} 0-1